[Event "*** Titled Tuesday Blitz"]
[Site "Chess.com"]
[Date "2021.03.09"]
[Round "8"]
[White "ChessWarrior7197"]
[Black "Funo09"]
[Result "1-0"]
[WhiteElo "2928"]
[BlackElo "2739"]
[TimeControl "180+1"]
[EndTime "11:31:50 PST"]
[Termination "ChessWarrior7197 won on time"]

1. e4 {[%clk 0:03:00.9]} 1... Nf6 {[%clk 0:02:59.2]} 2. e5 {[%clk 0:03:01]} 2...
Nd5 {[%clk 0:02:59.9]} 3. d4 {[%clk 0:03:01.9]} 3... Nb6 {[%clk 0:03:00.4]} 4.
Nf3 {[%clk 0:03:01.9]} 4... d5 {[%clk 0:03:01]} 5. exd6 {[%clk 0:03:00.8]} 5...
cxd6 {[%clk 0:02:59.5]} 6. c4 {[%clk 0:03:00.5]} 6... g6 {[%clk 0:02:59.8]} 7.
Nc3 {[%clk 0:03:01]} 7... Bg7 {[%clk 0:03:00.4]} 8. Be2 {[%clk 0:03:01.5]} 8...
O-O {[%clk 0:03:01]} 9. O-O {[%clk 0:03:01.6]} 9... Bg4 {[%clk 0:03:00.7]} 10.
b3 {[%clk 0:02:59]} 10... Nc6 {[%clk 0:03:00.1]} 11. Be3 {[%clk 0:02:59.4]}
11... d5 {[%clk 0:02:59.9]} 12. c5 {[%clk 0:02:59.7]} 12... Nc8 {[%clk
0:03:00.4]} 13. Ne1 {[%clk 0:02:56.6]} 13... Bxe2 {[%clk 0:02:54.2]} 14. Nxe2
{[%clk 0:02:57.5]} 14... e6 {[%clk 0:02:43.7]} 15. Nf3 {[%clk 0:02:52.1]} 15...
N8e7 {[%clk 0:02:43]} 16. Ng3 {[%clk 0:02:51.9]} 16... Qa5 {[%clk 0:02:11.8]}
17. a3 {[%clk 0:02:49.3]} 17... Qb5 {[%clk 0:02:11.5]} 18. Ne2 {[%clk
0:02:28.3]} 18... a5 {[%clk 0:02:06.9]} 19. Nc3 {[%clk 0:02:27.6]} 19... Qa6
{[%clk 0:02:07.5]} 20. Qd2 {[%clk 0:02:23.9]} 20... Nf5 {[%clk 0:02:06.6]} 21.
Rab1 {[%clk 0:02:14.8]} 21... Rfd8 {[%clk 0:01:48.9]} 22. Na4 {[%clk 0:02:01.8]}
22... Qb5 {[%clk 0:01:29.1]} 23. Nb6 {[%clk 0:02:01.7]} 23... Ra7 {[%clk
0:01:24.6]} 24. Rfe1 {[%clk 0:01:50.5]} 24... h6 {[%clk 0:01:07.7]} 25. h4
{[%clk 0:01:39.6]} 25... Kh7 {[%clk 0:01:04.1]} 26. h5 {[%clk 0:01:36.1]} 26...
g5 {[%clk 0:00:58.4]} 27. g4 {[%clk 0:01:22.2]} 27... Nd6 {[%clk 0:00:58.5]} 28.
Qc2+ {[%clk 0:01:17.7]} 28... Kg8 {[%clk 0:00:58]} 29. Bxg5 {[%clk 0:01:12.3]}
29... hxg5 {[%clk 0:00:54.8]} 30. Nxg5 {[%clk 0:01:13.2]} 30... Ne4 {[%clk
0:00:53.2]} 31. Rxe4 {[%clk 0:01:13.4]} 31... dxe4 {[%clk 0:00:51.4]} 32. Qxe4
{[%clk 0:01:14.3]} 32... Kf8 {[%clk 0:00:18.3]} 33. Qf4 {[%clk 0:01:14.2]} 33...
f6 {[%clk 0:00:08.7]} 34. Nxe6+ {[%clk 0:01:14.5]} 34... Kg8 {[%clk 0:00:08.1]}
35. Nxd8 {[%clk 0:01:14.1]} 35... Nxd8 {[%clk 0:00:09]} 36. Re1 {[%clk
0:01:13.3]} 36... Nf7 {[%clk 0:00:05.2]} 37. Qb8+ {[%clk 0:01:08.3]} 37... Kh7
{[%clk 0:00:05.8]} 38. Qxa7 {[%clk 0:01:09.2]} 38... Qxb3 {[%clk 0:00:05.6]} 39.
Qxb7 {[%clk 0:01:09.1]} 39... Ng5 {[%clk 0:00:05.6]} 40. Re7 {[%clk 0:00:57.3]}
40... Kh6 {[%clk 0:00:03.8]} 41. Rxg7 {[%clk 0:00:41.3]} 41... Nf3+ {[%clk
0:00:02.1]} 42. Kh1 {[%clk 0:00:24.2]} 42... Qd1+ {[%clk 0:00:01.1]} 43. Kg2
{[%clk 0:00:24.7]} 43... Nh4+ {[%clk 0:00:01.6]} 44. Kh3 {[%clk 0:00:23.6]} 1-0

[Event "*** Titled Tuesday Blitz"]
[Site "Chess.com"]
[Date "2021.03.09"]
[Round "8"]
[White "UmarovSabir"]
[Black "Zmeeed63"]
[Result "0-1"]
[WhiteElo "2288"]
[BlackElo "2458"]
[TimeControl "180+1"]
[EndTime "11:31:51 PST"]
[Termination "Zmeeed63 won by resignation"]

1. e4 {[%clk 0:03:00]} 1... Nc6 {[%clk 0:00:56.9]} 2. d4 {[%clk 0:02:42.3]} 2...
d5 {[%clk 0:00:56.8]} 3. e5 {[%clk 0:02:41.3]} 3... Bf5 {[%clk 0:00:56.9]} 4.
Nf3 {[%clk 0:02:40.9]} 4... e6 {[%clk 0:00:57.5]} 5. Bd3 {[%clk 0:02:39.8]} 5...
Nge7 {[%clk 0:00:58.2]} 6. O-O {[%clk 0:02:38.8]} 6... f6 {[%clk 0:00:58.4]} 7.
Re1 {[%clk 0:02:21.5]} 7... Qd7 {[%clk 0:00:57.9]} 8. c4 {[%clk 0:01:36.8]} 8...
Bxd3 {[%clk 0:00:48.2]} 9. Qxd3 {[%clk 0:01:36.3]} 9... dxc4 {[%clk 0:00:49.1]}
10. Qxc4 {[%clk 0:01:35.7]} 10... f5 {[%clk 0:00:50]} 11. Nc3 {[%clk 0:01:34.4]}
11... h6 {[%clk 0:00:48.1]} 12. b4 {[%clk 0:01:21.3]} 12... O-O-O {[%clk
0:00:47.3]} 13. Be3 {[%clk 0:01:03.2]} 13... Nd5 {[%clk 0:00:45.9]} 14. a3
{[%clk 0:00:57.1]} 14... f4 {[%clk 0:00:35.8]} 15. Bd2 {[%clk 0:00:55.2]} 15...
g5 {[%clk 0:00:35.3]} 16. h3 {[%clk 0:00:52.6]} 16... Be7 {[%clk 0:00:33.2]} 17.
Rac1 {[%clk 0:00:49]} 17... Nb6 {[%clk 0:00:32]} 18. Qb3 {[%clk 0:00:42.5]}
18... Nxd4 {[%clk 0:00:30.8]} 19. Nxd4 {[%clk 0:00:41.9]} 19... Qxd4 {[%clk
0:00:31.1]} 20. Qxe6+ {[%clk 0:00:41.8]} 20... Qd7 {[%clk 0:00:28.2]} 21. Qxd7+
{[%clk 0:00:40.8]} 21... Rxd7 {[%clk 0:00:29.1]} 22. Re2 {[%clk 0:00:37.5]}
22... Rd3 {[%clk 0:00:28.2]} 23. Ne4 {[%clk 0:00:33]} 23... Rhd8 {[%clk
0:00:26.3]} 24. f3 {[%clk 0:00:27.3]} 24... Na4 {[%clk 0:00:20.6]} 25. Be1
{[%clk 0:00:21.8]} 25... Rxa3 {[%clk 0:00:20.4]} 26. Rec2 {[%clk 0:00:18.1]}
26... c6 {[%clk 0:00:16.2]} 27. b5 {[%clk 0:00:17.9]} 27... c5 {[%clk 0:00:16]}
28. Bf2 {[%clk 0:00:16.5]} 28... b6 {[%clk 0:00:16.2]} 29. h4 {[%clk 0:00:10.5]}
29... Rd5 {[%clk 0:00:15.9]} 30. hxg5 {[%clk 0:00:10.3]} 30... hxg5 {[%clk
0:00:16.8]} 31. e6 {[%clk 0:00:10.5]} 31... Re5 {[%clk 0:00:12.1]} 32. Rd1
{[%clk 0:00:10.2]} 32... Rxe6 {[%clk 0:00:11.9]} 33. Rd5 {[%clk 0:00:10.1]}
33... Ra1+ {[%clk 0:00:09.7]} 34. Be1 {[%clk 0:00:07.3]} 34... Rxe1+ {[%clk
0:00:08.7]} 35. Kf2 {[%clk 0:00:08.2]} 35... R1xe4 {[%clk 0:00:08.5]} 36. fxe4
{[%clk 0:00:07.3]} 36... Rxe4 {[%clk 0:00:09.4]} 37. Re2 {[%clk 0:00:06.8]}
37... Rxe2+ {[%clk 0:00:08.9]} 38. Kxe2 {[%clk 0:00:07.7]} 38... Nc3+ {[%clk
0:00:09.3]} 0-1

[Event "*** Titled Tuesday Blitz"]
[Site "Chess.com"]
[Date "2021.03.09"]
[Round "8"]
[White "Jan1401"]
[Black "MillyNeuf"]
[Result "1-0"]
[WhiteElo "2418"]
[BlackElo "2283"]
[TimeControl "180+1"]
[EndTime "11:31:51 PST"]
[Termination "Jan1401 won on time"]

1. e4 {[%clk 0:02:33.6]} 1... e5 {[%clk 0:02:58.1]} 2. f4 {[%clk 0:02:33.2]}
2... exf4 {[%clk 0:02:54.2]} 3. Bc4 {[%clk 0:02:32.7]} 3... Qh4+ {[%clk
0:02:46.9]} 4. Kf1 {[%clk 0:02:25.9]} 4... d5 {[%clk 0:02:40.8]} 5. Bxd5 {[%clk
0:02:25.4]} 5... c6 {[%clk 0:02:40.9]} 6. Bb3 {[%clk 0:02:20.1]} 6... Bg4 {[%clk
0:02:31]} 7. Nf3 {[%clk 0:02:08.8]} 7... Qh5 {[%clk 0:02:22.1]} 8. d4 {[%clk
0:02:08.5]} 8... g5 {[%clk 0:02:12.7]} 9. Kg1 {[%clk 0:02:04.4]} 9... Bxf3
{[%clk 0:02:07.3]} 10. Qxf3 {[%clk 0:02:03.5]} 10... Qxf3 {[%clk 0:02:06.9]} 11.
gxf3 {[%clk 0:02:03.8]} 11... c5 {[%clk 0:02:01.7]} 12. h4 {[%clk 0:01:50.2]}
12... f6 {[%clk 0:01:47]} 13. hxg5 {[%clk 0:01:48.3]} 13... fxg5 {[%clk
0:01:47.9]} 14. Bxg8 {[%clk 0:01:45]} 14... Rxg8 {[%clk 0:01:47]} 15. Rxh7
{[%clk 0:01:44.9]} 15... Nd7 {[%clk 0:01:46.2]} 16. d5 {[%clk 0:01:36.2]} 16...
O-O-O {[%clk 0:01:35.6]} 17. Nc3 {[%clk 0:01:35.9]} 17... Ne5 {[%clk 0:01:33.6]}
18. Kf2 {[%clk 0:01:33.6]} 18... Bd6 {[%clk 0:01:10.8]} 19. b3 {[%clk
0:01:19.4]} 19... Rdf8 {[%clk 0:01:02.5]} 20. Nb5 {[%clk 0:01:14.3]} 20... Bb8
{[%clk 0:01:00.9]} 21. Bb2 {[%clk 0:01:12.7]} 21... g4 {[%clk 0:00:51.1]} 22. d6
{[%clk 0:00:38.7]} 22... Nxf3 {[%clk 0:00:41.9]} 23. e5 {[%clk 0:00:33.4]} 23...
Ng5 {[%clk 0:00:38.1]} 24. Re7 {[%clk 0:00:26.3]} 24... Ne4+ {[%clk 0:00:36.2]}
25. Kg1 {[%clk 0:00:21.6]} 25... f3 {[%clk 0:00:33.3]} 26. Rd1 {[%clk
0:00:14.6]} 26... f2+ {[%clk 0:00:31.2]} 27. Kg2 {[%clk 0:00:14.9]} 27... Nd2
{[%clk 0:00:21.4]} 28. d7+ {[%clk 0:00:11.6]} 28... Kd8 {[%clk 0:00:21]} 29.
Re8+ {[%clk 0:00:11.9]} 29... Rxe8 {[%clk 0:00:11.1]} 30. dxe8=Q+ {[%clk
0:00:11.6]} 30... Kxe8 {[%clk 0:00:07.8]} 31. Rxd2 {[%clk 0:00:11.2]} 31... g3
{[%clk 0:00:05.1]} 32. Nc3 {[%clk 0:00:09.2]} 32... Rf8 {[%clk 0:00:04.2]} 33.
Rd1 {[%clk 0:00:08]} 33... Bxe5 {[%clk 0:00:04.1]} 34. Na4 {[%clk 0:00:06.4]}
34... Bxb2 {[%clk 0:00:03.5]} 35. Nxb2 {[%clk 0:00:06.7]} 35... b6 {[%clk
0:00:03.6]} 36. Nd3 {[%clk 0:00:06.9]} 36... Ke7 {[%clk 0:00:02.2]} 37. Ne5
{[%clk 0:00:07.1]} 37... Ke6 {[%clk 0:00:02.2]} 38. Nf3 {[%clk 0:00:07.2]} 38...
a5 {[%clk 0:00:01.6]} 39. Kxg3 {[%clk 0:00:07.5]} 1-0

[Event "*** Titled Tuesday Blitz"]
[Site "Chess.com"]
[Date "2021.03.09"]
[Round "8"]
[White "allvim"]
[Black "profofchess"]
[Result "0-1"]
[WhiteElo "2356"]
[BlackElo "2489"]
[TimeControl "180+1"]
[EndTime "11:31:52 PST"]
[Termination "profofchess won on time"]

1. e4 {[%clk 0:03:00.9]} 1... e6 {[%clk 0:03:00.2]} 2. d4 {[%clk 0:03:00.7]}
2... d5 {[%clk 0:03:00.9]} 3. Nd2 {[%clk 0:03:01.2]} 3... e5 {[%clk 0:03:00.7]}
4. dxe5 {[%clk 0:02:54.4]} 4... dxe4 {[%clk 0:03:00.9]} 5. Nxe4 {[%clk
0:02:52.7]} 5... Qxd1+ {[%clk 0:03:01.8]} 6. Kxd1 {[%clk 0:02:53]} 6... Nc6
{[%clk 0:03:02.4]} 7. Bb5 {[%clk 0:02:47.7]} 7... Bd7 {[%clk 0:03:01.9]} 8. Nf3
{[%clk 0:02:39.5]} 8... Nxe5 {[%clk 0:02:58.2]} 9. Bxd7+ {[%clk 0:02:38.3]} 9...
Nxd7 {[%clk 0:02:58.4]} 10. Bf4 {[%clk 0:02:34.9]} 10... O-O-O {[%clk
0:02:57.6]} 11. Ke2 {[%clk 0:02:34.4]} 11... f6 {[%clk 0:02:55.1]} 12. Rad1
{[%clk 0:02:32.2]} 12... Ne7 {[%clk 0:02:55.3]} 13. Rd3 {[%clk 0:02:26.2]} 13...
Ng6 {[%clk 0:02:54]} 14. Bg3 {[%clk 0:02:20.8]} 14... Re8 {[%clk 0:02:32.6]} 15.
Re3 {[%clk 0:02:06.8]} 15... f5 {[%clk 0:02:29.2]} 16. Nc3 {[%clk 0:01:46.2]}
16... Bc5 {[%clk 0:02:24]} 17. Rxe8+ {[%clk 0:01:34.3]} 17... Rxe8+ {[%clk
0:02:24.9]} 18. Kd1 {[%clk 0:01:34.9]} 18... f4 {[%clk 0:02:25.2]} 19. Bh4
{[%clk 0:01:35.4]} 19... Nxh4 {[%clk 0:02:25.5]} 20. Nxh4 {[%clk 0:01:36.3]}
20... Bxf2 {[%clk 0:02:25.7]} 21. Nf3 {[%clk 0:01:30.3]} 21... Nf6 {[%clk
0:02:17.3]} 22. h3 {[%clk 0:01:21.1]} 22... Be3 {[%clk 0:01:27.6]} 23. Re1
{[%clk 0:00:58.7]} 23... Rd8+ {[%clk 0:01:27.6]} 24. Ke2 {[%clk 0:00:57.7]}
24... Nh5 {[%clk 0:01:28.1]} 25. Ne4 {[%clk 0:00:48.9]} 25... Rd4 {[%clk
0:01:28]} 26. Nfd2 {[%clk 0:00:41.7]} 26... Ng3+ {[%clk 0:01:10.2]} 27. Nxg3
{[%clk 0:00:32.7]} 27... Rxd2+ {[%clk 0:01:10.1]} 28. Kf3 {[%clk 0:00:32.4]}
28... Rf2+ {[%clk 0:00:42]} 29. Ke4 {[%clk 0:00:27.9]} 29... Rxc2 {[%clk
0:00:32.4]} 30. Nf5 {[%clk 0:00:26.4]} 30... Rxb2 {[%clk 0:00:26.2]} 31. Rd1
{[%clk 0:00:24.6]} 31... Rd2 {[%clk 0:00:20.6]} 32. Re1 {[%clk 0:00:14.5]} 32...
Rxa2 {[%clk 0:00:15.5]} 33. Nxg7 {[%clk 0:00:13.8]} 33... Rxg2 {[%clk
0:00:12.8]} 34. Nf5 {[%clk 0:00:14.2]} 34... b6 {[%clk 0:00:09.8]} 35. Rd1
{[%clk 0:00:07]} 35... a5 {[%clk 0:00:09.1]} 36. Rb1 {[%clk 0:00:02.9]} 36...
Kb7 {[%clk 0:00:08.5]} 37. Kf3 {[%clk 0:00:02.5]} 37... Rf2+ {[%clk 0:00:07.9]}
38. Ke4 {[%clk 0:00:02.9]} 38... Ra2 {[%clk 0:00:08.4]} 39. Kd5 {[%clk
0:00:02.5]} 39... a4 {[%clk 0:00:08]} 40. Ne7 {[%clk 0:00:02.5]} 40... Rc2
{[%clk 0:00:06.2]} 41. Ke6 {[%clk 0:00:01]} 41... a3 {[%clk 0:00:05]} 0-1

[Event "*** Titled Tuesday Blitz"]
[Site "Chess.com"]
[Date "2021.03.09"]
[Round "8"]
[White "GOGIEFF"]
[Black "amintabatabaei"]
[Result "1-0"]
[WhiteElo "2896"]
[BlackElo "3003"]
[TimeControl "180+1"]
[EndTime "11:31:58 PST"]
[Termination "GOGIEFF won by resignation"]

1. d4 {[%clk 0:03:00.9]} 1... d5 {[%clk 0:02:59.5]} 2. Bf4 {[%clk 0:02:58.8]}
2... Nf6 {[%clk 0:02:53.9]} 3. e3 {[%clk 0:02:58.2]} 3... e6 {[%clk 0:02:54.4]}
4. Nf3 {[%clk 0:02:53]} 4... Bd6 {[%clk 0:02:54.1]} 5. Bd3 {[%clk 0:02:53]} 5...
O-O {[%clk 0:02:49.7]} 6. O-O {[%clk 0:02:52.2]} 6... b6 {[%clk 0:02:49.8]} 7.
Ne5 {[%clk 0:02:42.4]} 7... c5 {[%clk 0:02:48.3]} 8. Nd2 {[%clk 0:02:36.8]} 8...
c4 {[%clk 0:02:46.6]} 9. Be2 {[%clk 0:02:34.8]} 9... Qc7 {[%clk 0:02:47]} 10.
Bg3 {[%clk 0:02:20.8]} 10... Nbd7 {[%clk 0:02:41.1]} 11. f4 {[%clk 0:02:20.7]}
11... Bb7 {[%clk 0:02:39.6]} 12. c3 {[%clk 0:02:14.3]} 12... b5 {[%clk 0:02:40]}
13. Bh4 {[%clk 0:02:07.2]} 13... a5 {[%clk 0:02:39.2]} 14. Rf3 {[%clk 0:01:56]}
14... b4 {[%clk 0:02:12.9]} 15. Rg3 {[%clk 0:01:44.2]} 15... g6 {[%clk
0:02:09.4]} 16. Bg5 {[%clk 0:01:29.1]} 16... a4 {[%clk 0:01:33.2]} 17. a3 {[%clk
0:01:29]} 17... bxc3 {[%clk 0:01:31.8]} 18. bxc3 {[%clk 0:01:29.9]} 18... Rfb8
{[%clk 0:01:00.4]} 19. h4 {[%clk 0:01:28.5]} 19... Bc6 {[%clk 0:01:00.7]} 20. h5
{[%clk 0:01:27.2]} 20... Rb2 {[%clk 0:01:00.9]} 21. hxg6 {[%clk 0:01:14.2]}
21... hxg6 {[%clk 0:01:00.9]} 22. e4 {[%clk 0:00:56.1]} 22... Rxd2 {[%clk
0:00:58.6]} 23. Qxd2 {[%clk 0:00:54.5]} 23... Nxe4 {[%clk 0:00:59.1]} 24. Qe1
{[%clk 0:00:55.1]} 24... Nxg3 {[%clk 0:00:43.7]} 25. Qxg3 {[%clk 0:00:56]} 25...
Bf8 {[%clk 0:00:44.6]} 26. Qh4 {[%clk 0:00:47.8]} 26... Bg7 {[%clk 0:00:41.4]}
27. Ng4 {[%clk 0:00:48]} 27... Rb8 {[%clk 0:00:37.9]} 28. Kf2 {[%clk 0:00:30.8]}
28... f5 {[%clk 0:00:33.9]} 29. Nh6+ {[%clk 0:00:27.3]} 29... Kf8 {[%clk
0:00:34]} 30. Rh1 {[%clk 0:00:22.1]} 30... Qa5 {[%clk 0:00:24.8]} 31. Be7+
{[%clk 0:00:21.4]} 31... Ke8 {[%clk 0:00:25.4]} 32. Qg5 {[%clk 0:00:20.6]} 32...
Qxc3 {[%clk 0:00:24.9]} 33. Qxg6+ {[%clk 0:00:20.6]} 33... Kxe7 {[%clk
0:00:25.5]} 34. Qxg7+ {[%clk 0:00:21.3]} 34... Kd6 {[%clk 0:00:23]} 35. Nf7+
{[%clk 0:00:20.2]} 35... Kc7 {[%clk 0:00:23.5]} 36. Ng5 {[%clk 0:00:21.1]} 36...
Rb2 {[%clk 0:00:18.8]} 37. Nxe6+ {[%clk 0:00:20.3]} 37... Kb6 {[%clk 0:00:18.7]}
38. Rh8 {[%clk 0:00:18.3]} 38... Qd2 {[%clk 0:00:14.1]} 39. Rb8+ {[%clk
0:00:17.6]} 39... Ka5 {[%clk 0:00:03.2]} 40. Rxb2 {[%clk 0:00:16.6]} 40... Qxb2
{[%clk 0:00:04.1]} 41. Qe7 {[%clk 0:00:15.3]} 41... Qb8 {[%clk 0:00:03.4]} 42.
g3 {[%clk 0:00:13.6]} 42... c3 {[%clk 0:00:03.6]} 43. Nc5 {[%clk 0:00:13.1]}
43... Qb7 {[%clk 0:00:01.2]} 44. Nxb7+ {[%clk 0:00:12.9]} 1-0

[Event "*** Titled Tuesday Blitz"]
[Site "Chess.com"]
[Date "2021.03.09"]
[Round "8"]
[White "dosto07"]
[Black "Fiona"]
[Result "0-1"]
[WhiteElo "2301"]
[BlackElo "2210"]
[TimeControl "180+1"]
[EndTime "11:31:59 PST"]
[Termination "Fiona won on time"]

1. e4 {[%clk 0:03:00.9]} 1... e5 {[%clk 0:03:00]} 2. Nf3 {[%clk 0:03:00.9]} 2...
Nc6 {[%clk 0:03:00.7]} 3. Bb5 {[%clk 0:03:00.8]} 3... a6 {[%clk 0:02:59.9]} 4.
Ba4 {[%clk 0:03:00.8]} 4... d6 {[%clk 0:02:59.2]} 5. Bxc6+ {[%clk 0:02:58.8]}
5... bxc6 {[%clk 0:02:59]} 6. d4 {[%clk 0:02:59.7]} 6... exd4 {[%clk 0:02:50.1]}
7. Nxd4 {[%clk 0:02:59.2]} 7... Bd7 {[%clk 0:02:50.7]} 8. Nc3 {[%clk 0:02:58.7]}
8... Be7 {[%clk 0:02:40.2]} 9. O-O {[%clk 0:02:57.3]} 9... Nf6 {[%clk
0:02:40.7]} 10. Qf3 {[%clk 0:02:54.6]} 10... O-O {[%clk 0:02:39.8]} 11. Nf5
{[%clk 0:02:54.2]} 11... Bxf5 {[%clk 0:02:32.8]} 12. Qxf5 {[%clk 0:02:53.5]}
12... Qd7 {[%clk 0:02:31.2]} 13. Qxd7 {[%clk 0:02:36.5]} 13... Nxd7 {[%clk
0:02:32.1]} 14. b3 {[%clk 0:02:35.1]} 14... Bf6 {[%clk 0:02:30.8]} 15. Bb2
{[%clk 0:02:35.4]} 15... Rfe8 {[%clk 0:02:25.4]} 16. Rfe1 {[%clk 0:02:30.8]}
16... Bd4 {[%clk 0:02:15.6]} 17. Rad1 {[%clk 0:02:27.9]} 17... Ba7 {[%clk
0:02:12.5]} 18. g3 {[%clk 0:02:14]} 18... Ne5 {[%clk 0:01:59.2]} 19. Kg2 {[%clk
0:02:14]} 19... Ng4 {[%clk 0:01:53.5]} 20. Rd2 {[%clk 0:01:49.6]} 20... Re7
{[%clk 0:01:37.5]} 21. Rde2 {[%clk 0:01:45.6]} 21... Rae8 {[%clk 0:01:37.1]} 22.
f3 {[%clk 0:01:39.3]} 22... Nf6 {[%clk 0:01:36.5]} 23. Nd1 {[%clk 0:01:16.7]}
23... Nd7 {[%clk 0:01:30.5]} 24. Kf1 {[%clk 0:00:48.1]} 24... h5 {[%clk
0:01:21.3]} 25. Bc1 {[%clk 0:00:38.6]} 25... f6 {[%clk 0:01:20.2]} 26. Be3
{[%clk 0:00:38]} 26... Bxe3 {[%clk 0:01:17.3]} 27. Nxe3 {[%clk 0:00:37.9]} 27...
Ne5 {[%clk 0:01:18]} 28. Kf2 {[%clk 0:00:33.7]} 28... a5 {[%clk 0:01:08]} 29. h3
{[%clk 0:00:32.2]} 29... g6 {[%clk 0:01:02]} 30. f4 {[%clk 0:00:31.7]} 30... Nd7
{[%clk 0:01:00.9]} 31. Nc4 {[%clk 0:00:27.3]} 31... a4 {[%clk 0:00:44.2]} 32.
bxa4 {[%clk 0:00:26.4]} 32... Ra8 {[%clk 0:00:40.5]} 33. a5 {[%clk 0:00:25.4]}
33... d5 {[%clk 0:00:22.6]} 34. exd5 {[%clk 0:00:24]} 34... Rxe2+ {[%clk
0:00:22]} 35. Rxe2 {[%clk 0:00:24.5]} 35... cxd5 {[%clk 0:00:22.9]} 36. Re7
{[%clk 0:00:15.8]} 36... Nc5 {[%clk 0:00:14.1]} 37. Ne3 {[%clk 0:00:09.8]} 37...
Ne4+ {[%clk 0:00:12]} 38. Kf3 {[%clk 0:00:07.4]} 38... Nd2+ {[%clk 0:00:11.1]}
39. Ke2 {[%clk 0:00:06]} 39... Ne4 {[%clk 0:00:08.4]} 40. Nxd5 {[%clk
0:00:05.7]} 40... Nxg3+ {[%clk 0:00:09.1]} 41. Kf3 {[%clk 0:00:04.8]} 41... Nf5
{[%clk 0:00:08.1]} 42. Nxf6+ {[%clk 0:00:04.8]} 42... Kf8 {[%clk 0:00:08.1]} 43.
Re5 {[%clk 0:00:03.2]} 43... Kf7 {[%clk 0:00:07.1]} 44. Nd7 {[%clk 0:00:02]}
44... Nd4+ {[%clk 0:00:05.9]} 45. Ke4 {[%clk 0:00:01.2]} 45... Ne6 {[%clk
0:00:06.6]} 0-1

[Event "*** Titled Tuesday Blitz"]
[Site "Chess.com"]
[Date "2021.03.09"]
[Round "8"]
[White "DrCeltic"]
[Black "Harry_Rakkel"]
[Result "0-1"]
[WhiteElo "2476"]
[BlackElo "2636"]
[TimeControl "180+1"]
[EndTime "11:32:00 PST"]
[Termination "Harry_Rakkel won on time"]

1. e4 {[%clk 0:03:00.9]} 1... c5 {[%clk 0:02:27.5]} 2. Nf3 {[%clk 0:03:00]} 2...
e6 {[%clk 0:02:27.1]} 3. d4 {[%clk 0:03:00.2]} 3... cxd4 {[%clk 0:02:27.2]} 4.
Nxd4 {[%clk 0:03:01.1]} 4... Nc6 {[%clk 0:02:27.3]} 5. Nc3 {[%clk 0:03:01.2]}
5... Qc7 {[%clk 0:02:27.3]} 6. Nb3 {[%clk 0:02:58.5]} 6... a6 {[%clk 0:02:25.6]}
7. Bd3 {[%clk 0:02:58.1]} 7... b5 {[%clk 0:02:24.5]} 8. f4 {[%clk 0:02:57.7]}
8... d6 {[%clk 0:02:18.2]} 9. Qf3 {[%clk 0:02:53.8]} 9... Nf6 {[%clk 0:02:16.1]}
10. Be3 {[%clk 0:02:53.5]} 10... Be7 {[%clk 0:02:11.7]} 11. g4 {[%clk
0:02:53.4]} 11... O-O {[%clk 0:02:09.5]} 12. g5 {[%clk 0:02:53.3]} 12... Nd7
{[%clk 0:02:09.2]} 13. O-O-O {[%clk 0:02:54]} 13... b4 {[%clk 0:02:00.9]} 14.
Ne2 {[%clk 0:02:53.5]} 14... a5 {[%clk 0:01:59.1]} 15. Kb1 {[%clk 0:02:51]}
15... a4 {[%clk 0:01:55.1]} 16. Nbd4 {[%clk 0:02:51.1]} 16... Nxd4 {[%clk
0:01:50.8]} 17. Nxd4 {[%clk 0:02:48]} 17... a3 {[%clk 0:01:36.4]} 18. Nb5 {[%clk
0:02:44.9]} 18... Qc6 {[%clk 0:01:30.5]} 19. Nd4 {[%clk 0:02:33.8]} 19... Qc7
{[%clk 0:01:24.3]} 20. Nb5 {[%clk 0:02:33.5]} 20... Qb8 {[%clk 0:01:15.7]} 21.
b3 {[%clk 0:02:30.2]} 21... Ra5 {[%clk 0:01:05.1]} 22. Nd4 {[%clk 0:02:28.6]}
22... Bb7 {[%clk 0:01:04.9]} 23. h4 {[%clk 0:02:22.6]} 23... Qc7 {[%clk
0:00:58.8]} 24. Ne2 {[%clk 0:02:10.9]} 24... Rc8 {[%clk 0:00:55.6]} 25. h5
{[%clk 0:02:10.3]} 25... Ba6 {[%clk 0:00:53]} 26. Bd4 {[%clk 0:02:01.5]} 26...
e5 {[%clk 0:00:51.3]} 27. fxe5 {[%clk 0:01:40.7]} 27... dxe5 {[%clk 0:00:50.8]}
28. Ba1 {[%clk 0:01:17.7]} 28... Bxg5 {[%clk 0:00:47.2]} 29. h6 {[%clk
0:01:11.5]} 29... Nc5 {[%clk 0:00:41.6]} 30. Bxa6 {[%clk 0:01:04.9]} 30... Rxa6
{[%clk 0:00:42.5]} 31. hxg7 {[%clk 0:00:57.9]} 31... Rf6 {[%clk 0:00:34.6]} 32.
Qg3 {[%clk 0:00:34.5]} 32... Nxe4 {[%clk 0:00:31.5]} 33. Qd3 {[%clk 0:00:29.5]}
33... Qc6 {[%clk 0:00:14.4]} 34. Ng3 {[%clk 0:00:28]} 34... Nd2+ {[%clk
0:00:12.3]} 35. Rxd2 {[%clk 0:00:23.2]} 35... Qxh1+ {[%clk 0:00:10.7]} 36. Nxh1
{[%clk 0:00:23.2]} 36... Bxd2 {[%clk 0:00:11.4]} 37. Bxe5 {[%clk 0:00:18.4]}
37... Rg6 {[%clk 0:00:09.7]} 38. Ng3 {[%clk 0:00:17.7]} 38... Bc3 {[%clk
0:00:09.5]} 39. Bf4 {[%clk 0:00:15.7]} 39... Re6 {[%clk 0:00:08.3]} 40. Bd2
{[%clk 0:00:12.2]} 40... Rce8 {[%clk 0:00:07]} 41. Nf5 {[%clk 0:00:08.4]} 41...
Re1+ {[%clk 0:00:06.8]} 0-1